[Event "ONJK 2023 U25"]
[Site "Dieren, Netherlands"]
[Date "2023.08.10"]
[Round "7.2"]
[White "Faybish, Benjamin"]
[Black "Verheul, Job"]
[Result "1/2-1/2"]
[TimeControl "90min + 30sec/zet"]
[WhiteElo "2064"]
[BlackElo "1952"]

1. d4 {[%clk 01:09:25]} {[%emt 00:21:34]} d5 {[%clk 01:30:48]} {[%emt
00:00:11]} 2. c4 {[%clk 01:09:27]} {[%emt 00:00:28]} c6 {[%clk 01:31:10]}
{[%emt 00:00:09]} 3. Nc3 {[%clk 01:09:52]} {[%emt 00:00:06]} Nf6 {[%clk
01:31:31]} {[%emt 00:00:08]} 4. e3 {[%clk 01:10:09]} {[%emt 00:00:13]} e6
{[%clk 01:31:51]} {[%emt 00:00:10]} 5. Nf3 {[%clk 01:10:29]} {[%emt 00:00:10]}
Nbd7 {[%clk 01:32:09]} {[%emt 00:00:12]} 6. Be2 {[%clk 01:10:45]} {[%emt
00:00:15]} Bd6 {[%clk 01:31:58]} {[%emt 00:00:40]} 7. O-O {[%clk 01:10:37]}
{[%emt 00:00:37]} O-O {[%clk 01:32:11]} {[%emt 00:00:18]} 8. b3 {[%clk
01:10:42]} {[%emt 00:00:25]} b6 {[%clk 01:32:09]} {[%emt 00:00:31]} 9. Bb2
{[%clk 01:05:54]} {[%emt 00:05:19]} Bb7 {[%clk 01:32:29]} {[%emt 00:00:11]} 10.
Bd3 {[%clk 01:00:08]} {[%emt 00:06:16]} Qe7 {[%clk 01:30:58]} {[%emt 00:02:00]}
11. cxd5 {[%clk 00:53:00]} {[%emt 00:07:38]} exd5 {[%clk 01:29:36]} {[%emt
00:01:52]} 12. Rc1 {[%clk 00:53:06]} {[%emt 00:00:25]} Ne4 {[%clk 01:22:44]}
{[%emt 00:07:21]} 13. Ne2 {[%clk 00:52:38]} {[%emt 00:00:58]} f5 {[%clk
01:16:44]} {[%emt 00:06:29]} 14. Bb1 {[%clk 00:46:52]} {[%emt 00:06:17]} Rae8
{[%clk 01:07:12]} {[%emt 00:10:01]} 15. Nf4 {[%clk 00:45:54]} {[%emt 00:01:29]}
Rf6 {[%clk 00:47:47]} {[%emt 00:19:54]} 16. Nd3 {[%clk 00:43:54]} {[%emt
00:02:31]} Ba6 {[%clk 00:41:52]} {[%emt 00:06:24]} 17. g3 {[%clk 00:34:37]}
{[%emt 00:09:48]} Bb8 {[%clk 00:36:57]} {[%emt 00:05:25]} 18. Re1 {[%clk
00:33:58]} {[%emt 00:01:09]} Rh6 {[%clk 00:31:20]} {[%emt 00:06:06]} 19. Ba1
{[%clk 00:25:24]} {[%emt 00:09:05]} g5 {[%emt 00:08:28]} 20. Nfe5 {[%clk
00:22:46]} {[%emt 00:03:05]} Nxe5 {[%clk 00:20:59]} {[%emt 00:02:55]} 21. Nxe5
{[%clk 00:21:41]} {[%emt 00:01:34]} Bxe5 {[%clk 00:21:23]} {[%emt 00:00:06]} 22.
dxe5 {[%clk 00:22:07]} {[%emt 00:00:05]} g4 {[%clk 00:14:22]} {[%emt 00:07:31]}
23. Bxe4 {[%clk 00:19:21]} {[%emt 00:03:15]} dxe4 {[%clk 00:13:57]} {[%emt
00:00:56]} 24. e6 {[%clk 00:19:28]} {[%emt 00:00:24]} c5 {[%clk 00:04:40]}
{[%emt 00:09:47]} 25. Qc2 {[%clk 00:19:00]} {[%emt 00:00:58]} Qg5 {[%clk
00:03:45]} {[%emt 00:01:25]} 26. Qc3 {[%clk 00:18:41]} {[%emt 00:00:49]} Rexe6
{[%clk 00:03:33]} {[%emt 00:00:42]} 27. b4 {[%clk 00:14:01]} {[%emt 00:05:10]}
Re7 {[%clk 00:00:37]} {[%emt 00:03:26]} 28. b5 {[%clk 00:08:46]} {[%emt
00:05:45]} Bb7 {[%clk 00:00:34]} {[%emt 00:00:32]} 29. Rcd1 {[%clk 00:08:49]}
{[%emt 00:00:28]} Qh5 {[%clk 00:00:35]} {[%emt 00:00:29]} 30. Rd8+ {[%clk
00:03:24]} {[%emt 00:05:54]} Kf7 {[%clk 00:01:03]} {[%emt 00:00:02]} 31. Qg7+
{[%clk 00:02:33]} {[%emt 00:01:20]} Ke6 {[%clk 00:01:32]} {[%emt 00:00:02]} 32.
Qe5+ {[%clk 00:02:09]} {[%emt 00:00:54]} Kf7 {[%clk 00:02:00]} {[%emt
00:00:02]} 33. Qg7+ {[%clk 00:01:06]} Ke6 {[%clk 00:02:00]} 1/2-1/2

[Event "ONJK 2023 U25"]
[Site "Dieren, Netherlands"]
[Date "2023.08.10"]
[Round "7.3"]
[White "Van Dam, Thijs"]
[Black "Van Randtwijk, Mick"]
[Result "0-1"]
[TimeControl "90min + 30sec/zet"]
[WhiteElo "1919"]
[BlackElo "2035"]

1. d4 {[%clk 01:30:56]} {[%emt 00:00:03]} d5 {[%clk 01:30:52]} {[%emt
00:00:08]} 2. Nf3 {[%clk 01:31:10]} {[%emt 00:00:15]} e6 {[%clk 01:30:53]}
{[%emt 00:00:29]} 3. Bf4 {[%clk 01:31:33]} {[%emt 00:00:08]} Bd6 {[%clk
01:30:46]} {[%emt 00:00:37]} 4. e3 {[%clk 01:30:48]} {[%emt 00:01:15]} Bxf4
{[%clk 01:28:52]} {[%emt 00:02:24]} 5. exf4 {[%clk 01:31:07]} {[%emt 00:00:11]}
Nf6 {[%clk 01:29:15]} {[%emt 00:00:07]} 6. Bd3 {[%clk 01:30:58]} {[%emt
00:00:39]} b6 {[%clk 01:28:18]} {[%emt 00:01:28]} 7. c3 {[%clk 01:31:11]}
{[%emt 00:00:16]} Bb7 {[%clk 01:28:24]} {[%emt 00:00:25]} 8. O-O {[%clk
01:31:21]} {[%emt 00:00:18]} O-O {[%clk 01:28:27]} {[%emt 00:00:29]} 9. f5
{[%clk 01:31:06]} {[%emt 00:00:45]} exf5 {[%clk 01:24:39]} {[%emt 00:04:18]} 10.
Bxf5 {[%clk 01:31:27]} {[%emt 00:00:08]} Qd6 {[%clk 01:25:01]} {[%emt
00:00:08]} 11. Ne5 {[%clk 01:29:52]} {[%emt 00:02:04]} c5 {[%clk 01:23:37]}
{[%emt 00:01:56]} 12. Re1 {[%clk 01:27:55]} {[%emt 00:02:27]} Nc6 {[%clk
01:23:09]} {[%emt 00:00:57]} 13. Na3 {[%clk 01:19:29]} {[%emt 00:08:56]} a6
{[%clk 01:20:34]} {[%emt 00:03:05]} 14. dxc5 {[%clk 01:13:24]} {[%emt
00:06:35]} bxc5 {[%clk 01:19:46]} {[%emt 00:01:17]} 15. Nac4 {[%clk 01:12:53]}
{[%emt 00:01:02]} Qc7 {[%clk 01:20:01]} {[%emt 00:00:15]} 16. Nxc6 {[%clk
01:12:40]} {[%emt 00:00:43]} Bxc6 {[%clk 01:19:58]} {[%emt 00:00:33]} 17. Ne5
{[%clk 01:12:06]} {[%emt 00:01:04]} Rfe8 {[%clk 01:11:51]} {[%emt 00:08:37]} 18.
Ng4 {[%clk 01:03:23]} {[%emt 00:09:12]} Rxe1+ {[%clk 01:03:37]} {[%emt
00:08:45]} 19. Qxe1 {[%clk 01:03:35]} {[%emt 00:00:18]} Nxg4 {[%clk 01:04:00]}
{[%emt 00:00:07]} 20. Bxg4 {[%clk 01:03:42]} {[%emt 00:00:22]} d4 {[%clk
01:04:20]} {[%emt 00:00:11]} 21. cxd4 {[%clk 01:01:29]} {[%emt 00:02:42]} cxd4
{[%clk 01:04:44]} {[%emt 00:00:07]} 22. Qd2 {[%clk 00:57:46]} {[%emt 00:04:12]}
Rd8 {[%clk 01:02:43]} {[%emt 00:02:32]} 23. Rc1 {[%clk 00:53:42]} {[%emt
00:04:34]} Qb6 {[%clk 01:00:55]} {[%emt 00:02:18]} 24. Qg5 {[%clk 00:46:59]}
{[%emt 00:07:13]} Bb7 {[%clk 00:57:40]} {[%emt 00:03:45]} 25. Qe7 {[%clk
00:42:21]} {[%emt 00:05:08]} Rf8 {[%clk 00:50:32]} {[%emt 00:07:38]} 26. Qe2
{[%clk 00:22:19]} {[%emt 00:20:32]} Qg6 {[%clk 00:40:36]} {[%emt 00:10:25]} 27.
Rd1 {[%clk 00:20:44]} {[%emt 00:02:05]} h5 {[%clk 00:37:04]} {[%emt 00:04:03]}
28. Bf3 {[%clk 00:20:57]} {[%emt 00:00:16]} Bxf3 {[%clk 00:37:20]} {[%emt
00:00:14]} 29. Qxf3 {[%clk 00:21:05]} {[%emt 00:00:22]} Rd8 {[%clk 00:37:37]}
{[%emt 00:00:14]} 30. Qd3 {[%clk 00:20:45]} {[%emt 00:00:50]} Qe6 {[%clk
00:36:25]} {[%emt 00:01:41]} 31. a3 {[%clk 00:19:35]} {[%emt 00:01:41]} Rd5
{[%clk 00:32:41]} {[%emt 00:04:13]} 32. h3 {[%clk 00:19:25]} {[%emt 00:00:40]}
g6 {[%clk 00:31:18]} {[%emt 00:01:52]} 33. Kf1 {[%clk 00:16:41]} {[%emt
00:03:15]} Qd6 {[%clk 00:30:07]} {[%emt 00:01:42]} 34. Kg1 {[%clk 00:16:49]}
{[%emt 00:00:22]} Kg7 {[%clk 00:29:14]} {[%emt 00:01:22]} 35. Kf1 {[%clk
00:15:11]} {[%emt 00:02:08]} h4 {[%clk 00:26:36]} {[%emt 00:03:08]} 36. Kg1
{[%clk 00:15:14]} {[%emt 00:00:27]} a5 {[%clk 00:26:10]} {[%emt 00:00:56]} 37.
Rc1 {[%clk 00:14:18]} {[%emt 00:01:26]} Re5 {[%clk 00:24:19]} {[%emt 00:02:21]}
38. Rd1 {[%clk 00:14:19]} {[%emt 00:00:29]} Kh7 {[%clk 00:24:12]} {[%emt
00:00:37]} 39. Kf1 {[%clk 00:11:31]} {[%emt 00:03:18]} Rd5 {[%clk 00:24:16]}
{[%emt 00:00:27]} 40. Kg1 {[%clk 00:11:15]} {[%emt 00:00:46]} Kg7 {[%clk
00:21:50]} {[%emt 00:02:56]} 41. Rc1 {[%clk 00:10:56]} {[%emt 00:00:48]} Qb6
{[%clk 00:19:47]} {[%emt 00:02:32]} 42. Rc2 {[%clk 00:10:41]} {[%emt 00:00:46]}
a4 {[%clk 00:18:14]} {[%emt 00:02:03]} 43. Rd2 {[%clk 00:10:32]} {[%emt
00:00:40]} Qe6 {[%clk 00:17:42]} {[%emt 00:01:01]} 44. Re2 {[%clk 00:10:09]}
{[%emt 00:00:53]} Qd6 {[%clk 00:17:22]} {[%emt 00:00:50]} 45. Rd2 {[%clk
00:10:18]} {[%emt 00:00:22]} Qf4 {[%clk 00:16:28]} {[%emt 00:01:24]} 46. Rd1
{[%clk 00:10:16]} {[%emt 00:00:31]} Qc7 {[%clk 00:14:09]} {[%emt 00:02:50]} 47.
Qe4 {[%clk 00:10:11]} {[%emt 00:00:34]} Qd8 {[%clk 00:14:19]} {[%emt 00:00:20]}
48. Rd3 {[%clk 00:07:42]} {[%emt 00:02:59]} g5 {[%clk 00:13:28]} {[%emt
00:01:20]} 49. Qe2 {[%clk 00:06:57]} {[%emt 00:01:16]} Qc7 {[%clk 00:11:57]}
{[%emt 00:02:01]} 50. Qd2 {[%clk 00:03:47]} {[%emt 00:03:41]} Qd6 {[%clk
00:08:44]} {[%emt 00:03:42]} 51. Qd1 {[%clk 00:03:38]} {[%emt 00:00:40]} Qd7
{[%clk 00:08:57]} {[%emt 00:00:17]} 52. Qg4 {[%clk 00:03:13]} {[%emt 00:00:54]}
Qe7 {[%clk 00:08:12]} {[%emt 00:01:15]} 53. Qd1 {[%clk 00:00:40]} {[%emt
00:03:03]} Re5 {[%clk 00:06:29]} {[%emt 00:02:13]} 54. Kh2 {[%clk 00:00:54]}
{[%emt 00:00:17]} Re1 {[%clk 00:06:10]} {[%emt 00:00:49]} 55. Qg4 {[%clk
00:00:58]} {[%emt 00:00:26]} Re4 {[%clk 00:04:56]} {[%emt 00:01:43]} 56. Qd1
{[%clk 00:00:43]} {[%emt 00:00:46]} Qe5+ {[%clk 00:04:18]} {[%emt 00:01:08]} 57.
g3 {[%clk 00:01:07]} {[%emt 00:00:06]} Re2 {[%clk 00:04:38]} {[%emt 00:00:09]}
58. Rf3 {[%clk 00:00:33]} {[%emt 00:01:04]} Rxf2+ {[%clk 00:04:18]} {[%emt
00:00:50]} 59. Rxf2 {[%clk 00:00:53]} {[%emt 00:00:10]} Qxg3+ {[%clk 00:04:45]}
{[%emt 00:00:04]} 60. Kh1 {[%clk 00:01:10]} {[%emt 00:00:12]} Qxf2 {[%clk
00:05:11]} {[%emt 00:00:04]} 61. b3 {[%clk 00:00:41]} {[%emt 00:00:59]} axb3
{[%clk 00:03:40]} {[%emt 00:02:01]} 62. Qxb3 {[%clk 00:01:10]} {[%emt
00:00:01]} Qe1+ {[%clk 00:04:03]} {[%emt 00:00:07]} 63. Kg2 {[%clk 00:01:24]}
{[%emt 00:00:16]} Qe2+ {[%clk 00:04:00]} {[%emt 00:00:33]} 64. Kg1 {[%clk
00:01:33]} {[%emt 00:00:20]} d3 {[%clk 00:03:33]} {[%emt 00:00:58]} 65. Qc3+
{[%clk 00:01:55]} {[%emt 00:00:08]} f6 {[%clk 00:03:58]} {[%emt 00:00:05]} 66.
Qc7+ {[%clk 00:02:06]} {[%emt 00:00:20]} Kg6 {[%clk 00:04:24]} {[%emt
00:00:03]} 67. Qd8 {[%clk 00:01:31]} {[%emt 00:01:05]} Qe1+ {[%clk 00:04:42]}
{[%emt 00:00:11]} 68. Kh2 {[%clk 00:01:17]} {[%emt 00:00:44]} Qg3+ {[%clk
00:05:06]} {[%emt 00:00:07]} 69. Kh1 {[%clk 00:01:41]} {[%emt 00:00:06]} Qxh3+
{[%clk 00:05:32]} {[%emt 00:00:04]} 70. Kg1 {[%clk 00:02:08]} {[%emt 00:00:03]}
Qe3+ {[%clk 00:05:38]} {[%emt 00:00:24]} 71. Kh1 {[%clk 00:02:24]} {[%emt
00:00:14]} d2 {[%clk 00:03:32]} {[%emt 00:02:36]} 72. Qg8+ {[%clk 00:02:40]}
{[%emt 00:00:13]} Kh5 {[%clk 00:03:50]} {[%emt 00:00:13]} 73. Qh7+ {[%clk
00:02:47]} {[%emt 00:00:23]} Kg4 {[%clk 00:04:09]} {[%emt 00:00:11]} 74. Qd7+
{[%clk 00:03:11]} {[%emt 00:00:06]} f5 {[%clk 00:04:28]} {[%emt 00:00:11]} 0-1